Workbook

Sheet Sheet1
B2: A | H2: B | N2: C | T2: D | Z2: BRAKES | AH2: A | AI2: B | AJ2: C | AK2: D
B3: factory | C3: LEFT | D3: RIGHT | E3: left | F3: right | G3: symet | H3: factory | I3: LEFT | J3: RIGHT | K3: left | L3: right | M3: symet. | N3: factory | O3: LEFT | P3: RIGHT | Q3: left | R3: dir. | S3: symet | T3: factory | U3: LEFT | V3: RIGHT | W3: left. | X3: right | Y3: symet | Z3: factory | AA3: LEFT | AB3: RIGHT | AC3: left. | AD3: right | AE3: symet
A4: 1 | B4: =AH4+$M$24 -> 6883 | C4: 6891.8 | D4: 6883.4 | E4: =C4-B4 -> 8.8 | F4: =D4-B4 -> 0.4 | G4: =C4-D4 -> 8.4 | H4: =AI4+$M$24 -> 6782 | I4: 6783.5 | J4: 6862.6 | K4: =I4-H4 -> 1.5 | L4: =J4-H4 -> 80.6 | M4: =I4-J4 -> -79.1 | N4: =AJ4+$M$24 -> 6868 | Q4: =O4-N4 -> -6868 | R4: =P4-N4 -> -6868 | S4: =O4-P4 -> 0 | T4: =AK4+$M$24 -> 6954 | W4: =U4-T4 -> -6954 | X4: =V4-T4 -> -6954 | Y4: =U4-V4 -> 0 | Z4: 7230 | AC4: =AA4-Z4 -> -7230 | AD4: =AB4-Z4 -> -7230 | AE4: =AA4-AB4 -> 0 | AH4: 6883 | AI4: 6782 | AJ4: 6868 | AK4: 6954
A5: 2 | B5: =AH5+$M$24 -> 6863 | C5: 6863.5 | D5: 6858.9 | E5: =C5-B5 -> 0.5 | F5: =D5-B5 -> -4.1 | G5: =C5-D5 -> 4.6 | H5: =AI5+$M$24 -> 6762 | I5: 6761.4 | J5: 6838 | K5: =I5-H5 -> -0.6 | L5: =J5-H5 -> 76 | M5: -76.6 | N5: =AJ5+$M$24 -> 6840 | Q5: =O5-N5 -> -6840 | R5: =P5-N5 -> -6840 | S5: =O5-P5 -> 0 | T5: =AK5+$M$24 -> 6927 | W5: =U5-T5 -> -6927 | X5: =V5-T5 -> -6927 | Y5: =U5-V5 -> 0 | Z5: 6831 | AC5: =AA5-Z5 -> -6831 | AD5: =AB5-Z5 -> -6831 | AE5: =AA5-AB5 -> 0 | AH5: 6863 | AI5: 6762 | AJ5: 6840 | AK5: 6927
A6: 3 | B6: 6855 | C6: 6855.1 | D6: 6851.3 | E6: 0.1 | F6: -3.7 | G6: 3.8 | H6: 6752 | I6: 6749.6 | J6: 6832.7 | K6: -2.4 | L6: 80.7 | M6: -83.1 | N6: 6824.5 | Q6: -6824.5 | R6: -6824.5 | S6: 0 | T6: 6909 | W6: -6909 | X6: -6909 | Y6: 0 | Z6: 6823 | AC6: -6823 | AD6: -6823 | AE6: 0 | AH6: 6855 | AI6: 6752 | AJ6: 6824.5 | AK6: 6909
A7: 4 | B7: 6871 | C7: 6873.6 | D7: 6867.3 | E7: 2.6 | F7: -3.7 | G7: 6.3 | H7: 6772 | I7: 6769.5 | J7: 6849.4 | K7: -2.5 | L7: 77.4 | M7: -79.9 | N7: 6838.5 | Q7: -6838.5 | R7: -6838.5 | S7: 0 | T7: 6919 | W7: -6919 | X7: -6919 | Y7: 0 | Z7: 6696 | AC7: -6696 | AD7: -6696 | AE7: 0 | AH7: 6871 | AI7: 6772 | AJ7: 6838.5 | AK7: 6919
A8: 5 | B8: 6833.5 | C8: 6837.2 | D8: 6838.9 | E8: 3.7 | F8: 5.4 | G8: -1.7 | H8: 6737 | I8: 6737.7 | J8: 6745.4 | K8: 0.7 | L8: 8.4 | M8: -7.7 | N8: 6807 | Q8: -6807 | R8: -6807 | S8: 0 | T8: 6887 | W8: -6887 | X8: -6887 | Y8: 0 | Z8: 6561 | AC8: -6561 | AD8: -6561 | AE8: 0 | AH8: 6833.5 | AI8: 6737 | AJ8: 6807 | AK8: 6887
A9: 6 | B9: 6835 | C9: 6831.6 | D9: 6833.5 | E9: -3.4 | F9: -1.5 | G9: -1.9 | H9: 6740.5 | I9: 6740 | J9: 6745.8 | K9: -0.5 | L9: 5.3 | M9: -5.8 | N9: 6810.5 | Q9: -6810.5 | R9: -6810.5 | S9: 0 | T9: 6883 | W9: -6883 | X9: -6883 | Y9: 0 | Z9: 6733 | AC9: -6733 | AD9: -6733 | AE9: 0 | AH9: 6835 | AI9: 6740.5 | AJ9: 6810.5 | AK9: 6883
A10: 7 | B10: 6823 | C10: 6828.5 | D10: 6827.6 | E10: 5.5 | F10: 4.6 | G10: 0.9 | H10: 6734.5 | I10: 6735.6 | J10: 6737.8 | K10: 1.1 | L10: 3.3 | M10: -2.2 | N10: 6797 | Q10: -6797 | R10: -6797 | S10: 0 | T10: 6872 | W10: -6872 | X10: -6872 | Y10: 0 | Z10: 6616 | AC10: -6616 | AD10: -6616 | AE10: 0 | AH10: 6823 | AI10: 6734.5 | AJ10: 6797 | AK10: 6872
A11: 8 | B11: 6844 | C11: 6848.7 | D11: 6850.6 | E11: 4.7 | F11: 6.6 | G11: -1.9 | H11: 6757.5 | I11: 6756.7 | J11: 6758.1 | K11: -0.8 | L11: 0.6 | M11: -1.4 | N11: 6818 | Q11: -6818 | R11: -6818 | S11: 0 | T11: 6881.5 | W11: -6881.5 | X11: -6881.5 | Y11: 0 | Z11: 6523 | AC11: -6523 | AD11: -6523 | AE11: 0 | AH11: 6844 | AI11: 6757.5 | AJ11: 6818 | AK11: 6881.5
A12: 9 | B12: 6813.5 | C12: 6810.6 | D12: 6813.9 | E12: -2.9 | F12: 0.4 | G12: -3.3 | H12: 6719 | I12: 6715.2 | J12: 6717.6 | K12: -3.8 | L12: -1.4 | M12: -2.4 | N12: 6768.5 | Q12: -6768.5 | R12: -6768.5 | S12: 0 | T12: 6829 | W12: -6829 | X12: -6829 | Y12: 0 | Z12: 6610 | AC12: -6610 | AD12: -6610 | AE12: 0 | AH12: 6813.5 | AI12: 6719 | AJ12: 6768.5 | AK12: 6829
A13: 10 | B13: 6762.5 | C13: 6758.2 | D13: 6761.4 | E13: -4.3 | F13: -1.1 | G13: -3.2 | H13: 6679 | I13: 6673.1 | J13: 6678.6 | K13: -5.9 | L13: -0.4 | M13: -5.5 | N13: 6723.5 | Q13: -6723.5 | R13: -6723.5 | S13: 0 | T13: 6774 | W13: -6774 | X13: -6774 | Y13: 0 | AH13: 6762.5 | AI13: 6679 | AJ13: 6723.5 | AK13: 6774
A14: 11 | B14: 6673.5 | C14: 6672.3 | D14: 6672.7 | E14: -1.2 | F14: -0.8 | G14: -0.4 | H14: 6607.5 | I14: 6605.9 | J14: 6604.2 | K14: -1.6 | L14: -3.3 | M14: 1.7 | N14: 6642 | Q14: -6642 | R14: -6642 | S14: 0 | T14: 6690 | W14: -6690 | X14: -6690 | Y14: 0 | AH14: 6673.5 | AI14: 6607.5 | AJ14: 6642 | AK14: 6690
A15: 12 | B15: 6621 | C15: 6620.6 | D15: 6624.8 | E15: -0.4 | F15: 3.8 | G15: -4.2 | H15: 6566.5 | I15: 6564.6 | J15: 6560.9 | K15: -1.9 | L15: -5.6 | M15: 3.7 | N15: 6593 | Q15: -6593 | R15: -6593 | S15: 0 | T15: 6634 | W15: -6634 | X15: -6634 | Y15: 0 | AH15: 6621 | AI15: 6566.5 | AJ15: 6593 | AK15: 6634
A16: 13 | B16: 6623 | C16: 6623.4 | D16: 6626 | E16: 0.4 | F16: 3 | G16: -2.6 | H16: 6560.5 | I16: 6568.2 | J16: 6567.1 | K16: 7.7 | L16: 6.6 | M16: 1.1 | N16: 6579.5 | Q16: -6579.5 | R16: -6579.5 | S16: 0 | T16: 6612 | W16: -6612 | X16: -6612 | Y16: 0 | AH16: 6623 | AI16: 6560.5 | AJ16: 6579.5 | AK16: 6612
A17: 14 | B17: 6367 | C17: 6373.9 | D17: 6363.8 | E17: 6.9 | F17: -3.2 | G17: 10.1 | H17: 6327 | I17: 6328.6 | J17: 6318.8 | K17: 1.6 | L17: -8.2 | M17: 9.8 | N17: 6350 | Q17: -6350 | R17: -6350 | S17: 0 | AH17: 6367 | AI17: 6327 | AJ17: 6350
A18: 15 | B18: 6245 | C18: 6245.3 | D18: 6235.2 | E18: 0.3 | F18: -9.8 | G18: 10.1 | H18: 6253 | I18: 6258.1 | J18: 6249.5 | K18: 5.1 | L18: -3.5 | M18: 8.6 | AH18: 6245 | AI18: 6253
D23: RIGHT | H23: LEFT | M23: OFFSET
C24: A | D24: X | E24: X | F24: X | G24: X | H24: X | I24: X | J24: AS+ | K24: 30 | M24: 0
C25: B | D25: X | E25: X | F25: X | G25: X | H25: X | I25: X | J25: AS | K25: 22
C26: C | D26: X | E26: X | F26: X | G26: X | H26: X | I26: X | J26: DL | K26: 15
